Cogmind - Beta 13 X1 @@@ ROGUE MODE // 2023.06.30 @ 18:40:36 Player: Plexion Result: Destroyed by ED-NIJ(R) with Subdweller Beam Cannon Performance ------------- Evolutions (0) 0 Regions Visited (2) 400 Robots Destroyed (13) 65 Value Destroyed (527) 527 Prototype IDs (0) 0 Alien Tech Used (0) 0 Bonus (0) 0 TOTAL SCORE: 992 Bonus ------- None Cogmind --------- Core Integrity 0/250 Matter 273/300 Energy 100/100 System Corruption 0% Temperature Cool (9) Movement Rolling (110) Location -10/Subcaves Parts ------- > --- POWER (1) -------- (None) > --- PROPULSION (2) --- Subdweller Monowheel Subdweller Monowheel > --- UTILITY (2) ------ Small Storage Unit Makeshift Armor Plating > --- WEAPON (2) ------- Battle Cannon Slug Cannon > --- INVENTORY (8) ---- Ion Engine Disposable Heat Sink Subdweller Laser Light Assault Rifle Subdweller Shrapnel Launcher Ripper Scrap Shield Fragment (35) Scrap Shield Fragment (20) Peak State ------------ > --- POWER ------------ (None) > --- PROPULSION ------- Subdweller Monowheel Subdweller Monowheel > --- UTILITY ---------- Small Storage Unit Makeshift Armor Plating > --- WEAPON ----------- Battle Cannon Slug Cannon > --- INVENTORY -------- Ion Engine Disposable Heat Sink Subdweller Laser Light Assault Rifle Subdweller Shrapnel Launcher Scrap Shield Fragment Scrap Shield Fragment [Rating: 16] Favorites ----------- Power Ion Engine Engine Ion Engine Propulsion Light Treads Treads Light Treads Wheel Subdweller Monowheel Utility Small Storage Unit Device Disposable Heat Sink Storage Small Storage Unit Protection Makeshift Armor Plating Weapon Battle Cannon Ballistic Gun Light Assault Rifle Ballistic Cannon Battle Cannon Launcher Grenade Launcher Build | -11 -10 -10 ------- Run | Jun Mat Sub Slots Evolved . | . . . Power . | . . . Propulsion . | . . . Utility . | . . . Weapon . | . . . Parts Attached 21 | 6 . 15 Power 1 | 1 . . Engine 1 | 1 . . Core . | . . . Reactor . | . . . Propulsion 5 | 2 . 3 Treads 2 | 2 . . Leg . | . . . Wheel 3 | . . 3 Hover . | . . . Flight . | . . . Utility 3 | 1 . 2 Device 1 | . . 1 Storage 1 | 1 . . Processor . | . . . Hackware . | . . . Protection 1 | . . 1 Artifact . | . . . Weapon 12 | 2 . 10 Energy Gun . | . . . Energy Cannon . | . . . Ballistic Gun 5 | 2 . 3 Ballistic Cannon 3 | . . 3 Launcher 4 | . . 4 Special Weapon . | . . . Impact Weapon . | . . . Slashing Weapon . | . . . Piercing Weapon . | . . . Special Melee Weapon . | . . . Unidentified Prototypes . | . . . Parts Lost 6 | . . 6 Power 1 | . . 1 Propulsion 3 | . . 3 Utility . | . . . Weapon 2 | . . 2 Highest Loss Streak 4 | . . 4 To Critical Strikes . | . . . Average Slot Usage (%) 88 | . 85 89 Engine 9 | . 14 8 Treads 12 | . 28 8 Wheel 13 | . . 17 Device 5 | . . 7 Storage 14 | . 14 14 Protection 3 | . . 3 Ballistic Gun 12 | . 28 7 Ballistic Cannon 11 | . . 15 Launcher 3 | . . 4 Naked Turns . | . . . Heaviest Build 19 | 13 13 19 Greatest Support 40 | 40 40 40 Greatest Overweight (x) . | . . . Average Overweight (x) . | . . . Largest Inventory Capacity 8 | 8 8 8 Average Capacity 7 | 7 8 8 Most Carried 8 | 2 3 8 Average Carried 5 | . 2 6 Final Capacity 8 | 8 8 8 Final Carried 8 | 2 3 8 Class Distribution -------------------- 74% | Mutant 25% | Derelict-Mutant Dominant Class ---------------- Mutant | -10/Materials Mutant | -10/Subcaves Resources | -11 -10 -10 ----------- Run | Jun Mat Sub Matter Collected 689 | 253 39 397 Remotely . | . . . Salvage Created 405 | . 97 308 Parts 21 | . 2 19 Haulers Intercepted . | . . . Recyclers Shooed 1 | . 1 . Parts Field Recycled . | . . . Retrieved Matter . | . . . Parts Self-Destructed 4 | . . 4 Prevented . | . . . Kills | -11 -10 -10 ------- Run | Jun Mat Sub Combat Hostiles Destroyed 13 | . 2 11 Guns 3 | . 2 1 Cannons 4 | . . 4 AOE 6 | . . 6 Classes Destroyed 3 | . 1 2 Grunt 4 | . 2 2 Sentry 1 | . . 1 Subdweller 8 | . . 8 Best Kill Streak 3 | . 2 3 Combat Bots Only 3 | . 2 3 Max Kills in Single Turn 2 | . 1 2 Gunslinging . | . . . Exploded 2 | . . 2 Melee . | . . . Uniques/NPCs Destroyed . | . . . Combat | -11 -10 -10 -------- Run | Jun Mat Sub Damage Taken 989 | . 156 833 Core 265 | . 34 231 Absorbed by Shields . | . . . Core Remaining (%) 100 | 100 . . Volleys Fired 44 | . 8 36 Largest 2 | . 2 2 Hottest 87 | . 40 87 Shots Fired 72 | . 16 56 Gun 27 | . 16 11 Cannon 33 | . . 33 Launcher 12 | . . 12 Special . | . . . Kinetic 60 | . 16 44 Thermal . | . . . Explosive 12 | . . 12 Electromagnetic . | . . . Robot Hit Streak 9 | . 3 9 Robot Miss Streak 2 | . 2 2 Penetration Max . | . . . Secondary Targets . | . . . Shots Hit Robots 43 | . 9 34 Core Hits 21 | . 6 15 Critical Kills . | . . . Critical Parts Destroyed . | . . . Critical Strikes 1 | . . 1 Blast 1 | . . 1 Melee Attacks . | . . . Impact . | . . . Slashing . | . . . Piercing . | . . . Sneak Attacks . | . . . Combat Hostiles . | . . . Follow-up Attacks . | . . . Damage Inflicted 1221 | . 99 1122 Guns 188 | . 97 91 Cannons 348 | . . 348 Explosions 683 | . . 683 Melee . | . . . Ramming 2 | . 2 . Kinetic 536 | . 97 439 Thermal . | . . . Explosive 683 | . . 683 Electromagnetic . | . . . Impact . | . . . Slashing . | . . . Piercing . | . . . Highest Corruption . | . . . Average Corruption . | . . . Corruption Purged . | . . . Corruption Blocked . | . . . Overload Shots . | . . . Overflow Damage . | . . . Projectiles . | . . . Explosions . | . . . Melee . | . . . Knockbacks 3 | . . 3 Impact . | . . . Kinetic 3 | . . 3 Secondary . | . . . Self-Inflicted Damage 68 | . . 68 Shots 2 | . . 2 Rammed 2 | . 2 . Targets Rammed 2 | . 2 . Kicked . | . . . Crushed . | . . . Highest Temperature 18 | . 18 1 Average Temperature 8 | . 10 1 Received Heat Transfer 240 | . 90 150 Siege Activations . | . . . Robots Corrupted . | . . . Combat Hostiles . | . . . Parts Fried . | . . . Impact Corruptions . | . . . Robots Melted . | . . . Combat Hostiles . | . . . Parts Melted . | . . . Heat Transferred . | . . . Parts Sabotaged . | . . . Parts Stolen . | . . . Parts Stripped . | . . . Power Chain Reactions . | . . . Missiles Intercepted . | . . . Alert | -11 -10 -10 ------- Run | Jun Mat Sub Peak Influence 80 | . 80 . Initial . | . . . Average 19 | . 23 . Maximum Alert Level . | . . . Low Security (%) 100 | 100 100 . Level 1 . | . . . Level 2 . | . . . Level 3 . | . . . Level 4 . | . . . Level 5 . | . . . High Security . | . . . Max Security . | . . . Squads Dispatched . | . . . Investigation . | . . . Extermination . | . . . Reinforcement . | . . . Assault . | . . . Garrison . | . . . Intercept . | . . . Searches Triggered . | . . . Construction Impeded . | . . . Haulers Reinforced . | . . . Active Scanning Responses . | . . . Cargo Convoy Interrupts . | . . . Stealth | -11 -10 -10 --------- Run | Jun Mat Sub Distress Signals . | . . . Communications Jammed . | . . . Distress Signals . | . . . Times Spotted 15 | . 3 12 Peak Tracking Total 2 | . 2 2 Tactical Retreats . | . . . Traps | -11 -10 -10 ------- Run | Jun Mat Sub Traps Triggered . | . . . Indirectly . | . . . Trap Hack Attempts . | . . . Triggered . | . . . Disarmed . | . . . Reprogrammed . | . . . Reused . | . . . Traps Extracted . | . . . Installed 1 | . . 1 Triggered . | . . . Most Traps Carried 1 | . . 1 Machines | -11 -10 -10 ---------- Run | Jun Mat Sub Machines Disabled . | . . . Max in Single Turn . | . . . Machines Repaired . | . . . Machines Sabotaged . | . . . Overloaded Fab Kills . | . . . Hacking | -11 -10 -10 --------- Run | Jun Mat Sub Machines Accessed . | . . . Terminals . | . . . Fabricators . | . . . Repair Stations . | . . . Recycling Units . | . . . Scanalyzers . | . . . Garrison Access . | . . . Total Hacks . | . . . Successful . | . . . Failed . | . . . Catastrophic . | . . . Database Lockouts . | . . . Manual . | . . . Terminals . | . . . Fabricators . | . . . Repair Stations . | . . . Recycling Units . | . . . Scanalyzers . | . . . Garrison Access . | . . . Terminal Hacks . | . . . Fabricator Hacks . | . . . Repair Station Hacks . | . . . Recycling Unit Hacks . | . . . Scanalyzer . | . . . Garrison Access Hacks . | . . . Unauthorized Hacks . | . . . Terminals . | . . . Fabricators . | . . . Repair Stations . | . . . Recycling Units . | . . . Scanalyzers . | . . . Garrison Access . | . . . Data Cores Recovered . | . . . Used . | . . . Hacking Detections . | . . . Full Trace Events . | . . . Feedback Events . | . . . Feedback Blocked . | . . . Robot Schematics Acquired . | . . . Robots Built . | . . . Authchips . | . . . Time . | . . . Total Robot Build Rating . | . . . Part Schematics Acquired . | . . . Parts Built . | . . . Authchips . | . . . Time . | . . . Total Part Build Rating . | . . . Parts Repaired . | . . . Time . | . . . Parts Recycled . | . . . Recycled Matter . | . . . Retrieved Matter . | . . . Retrieved Components . | . . . Parts Scanalyzed . | . . . Part Schematics Acquired . | . . . Parts Damaged . | . . . Bothacking | -11 -10 -10 ------------ Run | Jun Mat Sub Used RIF Installer . | . . . Robots Hacked . | . . . Non-combat . | . . . Combat . | . . . Robot Hacks Applied . | . . . Relay Couplers Released . | . . . Fabnet Peak Effective % . | . . . Robots Rewired . | . . . Allies Hacked . | . . . Hacks Repelled . | . . . Allies | -11 -10 -10 -------- Run | Jun Mat Sub Total Allies . | . . . Largest Group . | . . . Highest-Rated Group . | . . . Highest-Rated Ally . | . . . Total Orders . | . . . Ally Attacks . | . . . Total Damage . | . . . Kills . | . . . Allies Corrupted . | . . . Allies Melted . | . . . Intel | -11 -10 -10 ------- Run | Jun Mat Sub Robot Analysis Total . | . . . Derelict Logs Recovered 1 | . . 1 Drone Launches . | . . . Drone Recoveries . | . . . Exploration | -11 -10 -10 ------------- Run | Jun Mat Sub Turns Passed 1293 | 63 284 946 Spaces Moved 896 | 36 158 702 Core 4 | 4 . . Treads 218 | 32 158 28 Legs . | . . . Wheels 674 | . . 674 Hover . | . . . Flight . | . . . Fastest Speed 50 | 50 160 110 Average Speed 121 | 147 160 111 Slowest Speed 160 | 160 160 160 Overloaded Moves . | . . . Propulsion Burnouts . | . . . Robots Hopped . | . . . Cave-ins Triggered . | . . . Exploration Rate (%) 24 | 3 26 45 Regions Visited 2 Branch Regions 1 Pre-discovered Areas . | . . . Known Exits Taken . | . . . Unknown Exits Taken 2 | 1 1 . Scrap Searched 14 | . . 14 Spaces Dug 9 | . . 9 Terrain Destroyed 57 | . . 57 Melee . | . . . Projectile 2 | . . 2 AOE 55 | . . 55 Terrain Rammed . | . . . Walls Destroyed . | . . . Machines Disabled . | . . . Actions | -11 -10 -10 --------- Run | Jun Mat Sub Total 1022 | 43 174 805 Wait 39 | . 6 33 Move 894 | 35 157 702 Hop . | . . . Pick Up 15 | 2 1 12 Fast Attach 10 | 6 . 4 Attach 3 | . . 3 Detach 1 | . . 1 Swap 8 | . . 8 Drop 5 | . . 5 Fire 44 | . 8 36 Melee . | . . . Ram . | . . . Kick . | . . . Crush 2 | . 2 . Escape Stasis . | . . . Rewire . | . . . Trap 1 | . . 1 Miscellaneous . | . . . Route ------- -11/Junkyard -10/Materials (discovered 2 exits: *Mat / [*Sub]) -10/Subcaves (discovered 1 exit: Mat) History --------- Turn | Location | Event 18 | -11/Junkyard | Discovered new exit (range 16) 64 | -11/Junkyard | Entered Materials 227 | -10/Materials | Discovered new exit (range 7) 312 | -10/Materials | Build established: Mutant 339 | -10/Materials | Discovered new exit (range 6) 348 | -10/Materials | Entered Subcaves 368 | -10/Subcaves | Ambushed by Subdweller buried in earth 400 | -10/Subcaves | Core integrity fell below 50% 571 | -10/Subcaves | A swath of the cavern ceiling suddenly collapsed 865 | -10/Subcaves | Core integrity fell below 20% 933 | -10/Subcaves | Ambushed by Subdweller buried in earth 974 | -10/Subcaves | Lost 4 parts (1p1n2w) 1113 | -10/Subcaves | A swath of the cavern ceiling suddenly collapsed 1157 | -10/Subcaves | Identified exit to Materials 1167 | -10/Subcaves | Shifting Twisted Machinery released Ripper 1172 | -10/Subcaves | Shifting Twisted Machinery released Sub. Laser 1294 | -10/Subcaves | Destroyed by ED-NIJ(R) with Subdweller Beam Cannon Last Messages --------------- 01040_ Searching scrap... 01040_ Found Slug Cannon. 01040_ Found 43 Matter. 01042_ Searching scrap... 01042_ Found Barrage Gun. 01042_ Found Sub. Power Source. 01042_ Found 24 Matter. 01045_ Searching scrap... 01045_ Found Humpback. 01045_ Found 27 Matter. 01049_ Acquired Sub. Monowheel. 01051_ Dropped Piercing Trap. 01056_ Acquired Slug Cannon. 01057_ Acquired 10 matter. 01068_ Sub. Monowheel shoots sparks and powers down. A swath of the cavern ceiling suddenly collapses. 01157_ Acquired derelict log, extracted data. Ripper falls loose from the Twisted Machinery. Sub. Laser falls loose from the Twisted Machinery. 01173_ Acquired Ripper. Map ----- +----------------------------------------------------+ | ?????????## #####????## #?????????????????? | | ??????#### ##??????## #?????????????????? | | ??????# ####???# #??????####???????? | | ??????# ##??### ##????? #???????? | | ?????## #????### ##?#### #???????? | | ?????# #####??# ### #????????? | | ????# # # #### #?????????? | | ????# ## #?????????? | | ????# ## ###?????????? | | ????## ## # ## ###""[ ##???????????? | | ?????##### #### ######### "" #????????????? | | ?????????##??# ####### #### #????????????? | | ?????????????# ## ###?## ##????????????? | | ????????????## # ######?????????????? | | ????????????# """#####?????????? | | ????????????## # # # """""?????????? | | ?????????????## ### ## ## """?????????? | | ??????????????## ##?#### ### """"??????????? | | ???????????????####?????# #" """ ?????????? | | ????????????????????????# ### ""#?????????? | | ???????????????????????## ## #? ##?????????? | | ???????? #????????????## ### ##"" #?????????? | | ????????? ???##??## #?## """# ??????? | | ??????????#" # ## #??## """ ?????? | | ?????????????# #???# """ ??????? | | ?????????????# #@ #???# """ " ##??????? | | ????????????# ## # ## ###?# """ ##???????? | | ??????????# ???#### ### ######????????? | | ???????? ???????? # #?????????????? | | ???????? ??????????# ## # ##????????????? | | ???????? ???????????## ## # #????????????? | | ?????????????????????# ;## #????????????? | | ??????????????????#### ### ###??????##???? | | ??????????????????# ## ######???? #??? | | ??????????????????# R ### ##??? ##?# | | ??????????????????# ## #??? ## | | ??????????????????## ## #### | | ???????????????????# ### ## # | | ???????????????????## #### | | ????????????????????## ## #?# | | ???????????????????? ##?# ###"" ## | | ?????????????????? ????# ### ###"" #### ## | | ???????????????? ?????# # #""#### #??? | | ??????????????? ## ??????# ########"### #???? | | ?????????????????#??????##"##" "##"##?# #???? | | ????????????????????????# ""###""##??## ##???? | | ????????????????????????# ##?####????# ###????? | | ????????????????????????## ##??# ??????# #??????? | | ?????????????????????????###??? ??????## ##?????? | | ?????????????????????????????? ???????# #?????? | +----------------------------------------------------+ Best States ------------- Heat Dissipation 25 Coolant Potential 50 Energy Generation 10 Energy Capacity 250 Matter Stores 300 Matter Capacity 300 Sight Range 16 Terrain Scan Density 10 Armor Coverage 100 Evasion (%) 40 Recoil Reduction 2 Item Schematics ----------------- None Robot Schematics ------------------ None Fabricated ------------ Nothing Alien Tech Used ----------------- None Achievements -------------- None Challenges ------------ None Game ------ Seed HelicalTransmissionConstruct Manual? 0 Play Time 00:07:47 Cumulative 415.1 hours Start 2023.06.30 @ 18:33:33 End 2023.06.30 @ 18:40:36 Sessions 1 Manual Loads 0 Difficulty Rogue Special Mode None Game No. 498 Rogue 411 Adventurer 87 Explorer 0 Win Type - Total 21 Types 7/0/12/1/1/0/0/0/0 Lore% 85 Gallery% 90 Achievement% 73 Wizard Run 0 Options --------- ASCII 0 Keyboard 1 Movement Numpad Keybinds 0 Fullscreen 1 Font 18/SmallcapsGlow Map View 76x50 Tactical HUD 1 Map Filters NONE Filters NONE Steam 1 RUN: 513cce4d-2c8f-4d76-b22c-2c9697ac5ec3